bitfinex-derivatives/quotes_BTCF0:USTF0_20251202
["timestamp","ask_amount","ask_price","bid_price","bid_amount"]
[1764641036521,0.06695,86543.0,86542.0,0.48041]
[1764641036827,0.12509,86543.0,86542.0,0.48041]
[1764641037627,0.30509,86543.0,86542.0,0.3608]
[1764641037828,0.30509,86543.0,86542.0,0.42033]
[1764641038029,0.12509,86543.0,86542.0,0.42033]
[1764641038221,0.12509,86543.0,86542.0,0.48041]
[1764641039132,0.15868,86535.0,86534.0,0.00017342]
[1764641039933,0.15868,86535.0,86534.0,0.05970342]
[1764641040521,0.12209,86535.0,86534.0,0.11978342]
[1764641040731,0.15868,86535.0,86534.0,0.11978342]
[1764641040927,0.15868,86535.0,86534.0,0.00017342]
[1764641041137,0.54868,86535.0,86534.0,0.00017342]
[1764641041338,0.54968,86535.0,86534.0,0.00017342]
[1764641042029,0.20968,86535.0,86534.0,0.00017342]
[1764641042419,0.20968,86535.0,86534.0,0.05970342]
[1764641042624,0.12309,86535.0,86534.0,0.11303342]
[1764641042824,0.001,86535.0,86534.0,0.11303342]
[1764641043521,0.001,86535.0,86534.0,0.47383342]
[1764641048235,0.001,86535.0,86534.0,0.73383342]
[1764641048725,0.00017342,86551.0,86550.0,0.10674]
[1764641049033,0.00017342,86551.0,86550.0,0.46754]
[1764641050121,0.00317342,86551.0,86550.0,0.46754]
[1764641050539,0.11313342,86551.0,86550.0,0.46754]
[1764641050828,0.11313342,86551.0,86550.0,0.3608]
[1764641051429,0.11313342,86551.0,86550.0,0.41421]
[1764641052337,0.11313342,86551.0,86550.0,0.3608]
[1764641052528,0.52313342,86551.0,86550.0,0.3608]
[1764641052725,0.10996,86544.0,86543.0,0.46754]
[1764641053834,0.14315,86544.0,86543.0,0.3608]
[1764641054139,0.14315,86544.0,86543.0,0.46754]
[1764641054333,0.05293,86544.0,86543.0,0.46754]
[1764641054534,0.05293,86549.0,86548.0,0.10674]
[1764641055344,0.10996,86549.0,86548.0,0.05341]
[1764641055528,0.14315,86544.0,86543.0,0.41421]
[1764641055836,0.14315,86544.0,86543.0,0.3608]
[1764641056334,0.11196,86549.0,86548.0,0.10674]
[1764641056840,0.10996,86549.0,86548.0,0.10674]
[1764641058041,0.10996,86544.0,86543.0,0.46754]
[1764641059638,0.05493,86544.0,86543.0,0.46754]
[1764641059839,0.002,86544.0,86543.0,0.46754]
[1764641060140,0.05493,86544.0,86543.0,0.46754]
[1764641061142,0.002,86544.0,86543.0,0.46754]
[1764641062136,0.1328,86544.0,86543.0,0.35110841]
[1764641062327,0.1328,86544.0,86534.0,0.36097342]
[1764641062328,0.1215156,86535.0,86534.0,0.00017342]
[1764641062527,0.8723156,86535.0,86534.0,0.00017342]
[1764641063643,0.53660268,86535.0,86534.0,0.00017342]
[1764641063843,0.75660268,86535.0,86534.0,0.00017342]
[1764641064842,0.1215172,86523.0,86522.0,0.3608]
[1764641065047,0.1215172,86523.0,86513.0,0.3608]
[1764641065048,0.1215184,86514.0,86513.0,0.46754]
[1764641066144,0.53578992,86514.0,86513.0,0.3608]
[1764641066340,0.1215195,86506.0,86505.0,0.00017331]
[1764641066945,0.1215195,86506.0,86505.0,0.05358331]
[1764641067145,0.10996,86506.0,86505.0,0.10691331]
[1764641068949,0.10996,86506.0,86505.0,0.00017331]
[1764641069648,0.10996,86506.0,86505.0,0.10280331]
[1764641070547,0.03319,86508.0,86505.0,0.10280331]
[1764641070758,0.06192,86506.0,86505.0,0.10280331]
[1764641072548,0.06192,86506.0,86505.0,0.00017331]
[1764641072549,0.46192,86506.0,86505.0,0.00017331]
[1764641073050,0.48611233,86506.0,86505.0,0.00017331]
[1764641073254,0.46192,86506.0,86505.0,0.00017331]
[1764641074348,0.46492,86506.0,86505.0,0.00017331]
[1764641074850,0.46192,86506.0,86505.0,0.00017331]
[1764641075047,0.46492,86506.0,86505.0,0.00017331]
[1764641082157,0.46492,86506.0,86505.0,0.12622331]
[1764641083152,0.17492,86506.0,86505.0,0.12622331]
[1764641083349,0.113,86506.0,86505.0,0.12622331]
[1764641083658,0.6508,86506.0,86505.0,0.12622331]
[1764641084159,0.76933,86506.0,86505.0,0.12622331]
[1764641084653,0.76833,86506.0,86505.0,0.12622331]
[1764641084964,1.19833,86506.0,86505.0,0.12622331]
[1764641085541,1.52833,86506.0,86505.0,0.12622331]
[1764641085745,1.23833,86506.0,86505.0,0.12622331]
[1764641086358,1.17699,86506.0,86505.0,0.12622331]
[1764641086658,0.9688,86506.0,86505.0,0.12622331]
[1764641087051,0.5388,86506.0,86505.0,0.12622331]
[1764641087357,0.001,86506.0,86505.0,0.12622331]
[1764641087756,0.8254682,86516.0,86515.0,0.12605]
[1764641088060,1.1054682,86516.0,86515.0,0.12605]
[1764641090358,1.1306958,86516.0,86515.0,0.12605]
[1764641090850,1.1306958,86516.0,86505.0,0.00017331]
[1764641090851,0.0115588,86511.0,86510.0,0.3608]
[1764641091055,0.0115588,86511.0,86510.0,0.48685]
[1764641091056,0.4910888,86511.0,86510.0,0.48685]
[1764641091260,0.1310895,86506.0,86505.0,0.12622331]
[1764641091455,0.4810895,86506.0,86505.0,0.12622331]
[1764641091656,0.46953,86506.0,86505.0,0.12622331]
[1764641091854,0.7682782,86516.0,86515.0,0.12605]
[1764641092059,1.00125303,86516.0,86515.0,0.12605]
[1764641092854,0.95125303,86516.0,86515.0,0.12605]
[1764641093259,0.95025303,86516.0,86515.0,0.12605]
[1764641095054,1.11025303,86516.0,86515.0,0.12605]
[1764641095453,0.11953,86512.0,86511.0,0.3608]
[1764641095756,0.92377483,86512.0,86511.0,0.3608]
[1764641096063,0.69377483,86512.0,86511.0,0.3608]
[1764641096367,0.69377483,86512.0,86511.0,0.42517]
[1764641096756,0.06150655,86534.0,86521.0,0.12605]
[1764641096956,0.23420007,86522.0,86521.0,0.48685]
[1764641097261,0.21017331,86522.0,86521.0,0.48685]
[1764641098074,0.21117331,86522.0,86521.0,0.48685]
[1764641099565,0.33070331,86522.0,86521.0,0.48685]
[1764641099770,0.32970331,86522.0,86521.0,0.48785]
[1764641100464,0.73970331,86522.0,86521.0,0.48785]
[1764641100770,0.59372991,86522.0,86521.0,0.48785]
[1764641100957,0.59372991,86522.0,86521.0,0.001]
[1764641101158,0.59372991,86522.0,86521.0,0.12705]
[1764641101459,0.35372991,86522.0,86521.0,0.12705]
[1764641101655,0.07306135,86542.0,86532.0,0.12605]
[1764641101968,0.07306135,86542.0,86527.0,0.03677]
[1764641101969,0.11953,86548.0,86547.0,0.12605]
[1764641102164,0.72357219,86548.0,86547.0,0.12605]
[1764641102565,0.72357219,86548.0,86541.0,0.03677]
[1764641102566,0.0862,86542.0,86541.0,0.09455]
[1764641102756,0.52024219,86542.0,86541.0,0.1479]
[1764641102959,0.4962,86542.0,86541.0,0.1479]
[1764641103669,0.52022971,86542.0,86541.0,0.1479]
[1764641104367,0.52322971,86542.0,86541.0,0.1479]
[1764641104873,0.4992,86542.0,86541.0,0.1479]
[1764641105072,0.52322324,86542.0,86541.0,0.1479]
[1764641108070,0.52322324,86542.0,86535.0,0.47193]
[1764641108071,0.0862,86536.0,86535.0,0.47193]
[1764641108270,0.5062,86536.0,86535.0,0.47193]
[1764641108674,0.0461,86542.0,86541.0,0.14301]
[1764641108972,0.003,86542.0,86541.0,0.14301]
[1764641109283,0.00017331,86550.0,86549.0,0.11113]
[1764641109963,0.53752,86559.0,86548.0,0.03188]
[1764641109964,0.53752,86559.0,86558.0,0.11113]
[1764641110166,0.447,86565.0,86564.0,0.11113]
[1764641110363,0.41400781,86565.0,86564.0,0.11113]
[1764641110572,0.39,86565.0,86564.0,0.11113]
[1764641111571,0.00017331,86573.0,86572.0,0.11113]
[1764641111879,0.15017331,86573.0,86572.0,0.47193]
[1764641112468,0.36017331,86573.0,86572.0,0.47193]
[1764641112778,0.0862,86569.0,86568.0,0.08966]
[1764641112977,0.4862,86569.0,86568.0,0.14301]
[1764641114178,0.4892,86569.0,86568.0,0.14301]
[1764641114978,0.0862,86562.0,86561.0,0.47193]
[1764641115279,0.4662,86562.0,86561.0,0.47193]
[1764641115878,0.0977521,86561.0,86560.0,0.03188]
[1764641116074,0.4977521,86561.0,86560.0,0.14301]
[1764641116275,0.0115526,86558.0,86556.0,0.00017331]
[1764641116480,0.0862,86557.0,86556.0,0.11130331]
[1764641116676,0.4362,86557.0,86556.0,0.11130331]
[1764641117071,0.4362,86557.0,86556.0,0.00017331]
[1764641118565,0.4362,86557.0,86556.0,0.00217331]
[1764641118771,0.8062,86557.0,86556.0,0.00217331]
[1764641118970,0.8062,86557.0,86556.0,0.00017331]
[1764641119379,0.0862,86555.0,86554.0,0.3608]
[1764641119678,0.0862,86539.0,86538.0,0.47193]
[1764641119866,0.0862,86546.0,86545.0,0.11113]
[1764641120070,1.04372,86546.0,86545.0,0.11113]
[1764641120780,0.0862,86539.0,86538.0,0.3608]
[1764641120986,0.0862,86538.0,86537.0,0.00017331]
[1764641121171,0.8301666,86538.0,86537.0,0.00017331]
[1764641121366,0.0115554,86537.0,86521.0,0.3608]
[1764641121571,0.0431,86510.0,86509.0,0.47193]
[1764641121777,0.27040569,86510.0,86509.0,0.47193]
[1764641122766,0.27040569,86510.0,86509.0,0.47493]
[1764641124384,0.66040569,86510.0,86509.0,0.003]
[1764641125481,0.66040569,86510.0,86501.0,0.00017331]
[1764641125482,0.01156,86502.0,86501.0,0.00017331]
[1764641125786,1.32932,86502.0,86501.0,0.00017331]
[1764641127069,1.32932,86502.0,86501.0,0.00417331]
[1764641127273,1.32932,86502.0,86501.0,0.06195331]
[1764641127481,1.32932,86502.0,86501.0,0.00417331]
[1764641127884,0.39,86502.0,86501.0,0.11530331]
[1764641128084,0.9278,86502.0,86501.0,0.11530331]
[1764641128987,0.9278,86502.0,86501.0,0.06195331]
[1764641128988,1.3678,86502.0,86501.0,0.06195331]
[1764641129289,1.3678,86502.0,86501.0,0.00417331]
[1764641131094,1.3678,86502.0,86501.0,0.14533331]
[1764641132482,0.9278,86502.0,86501.0,0.14533331]
[1764641132683,1.0478,86502.0,86501.0,0.14533331]
[1764641134680,0.12,86502.0,86501.0,0.14533331]
[1764641134882,0.00536,86512.0,86511.0,0.13945]
[1764641135089,1.2896,86512.0,86511.0,0.13945]
[1764641135389,0.00536,86509.0,86508.0,0.04264]
[1764641135588,0.81536,86509.0,86508.0,0.11241]
[1764641135887,0.01692,86502.0,86501.0,0.00417331]
[1764641136192,1.40472,86502.0,86501.0,0.00017331]
[1764641137680,1.39316,86502.0,86501.0,0.13962331]
[1764641137885,1.10316,86502.0,86501.0,0.13962331]
[1764641138288,1.10316,86502.0,86501.0,0.14262331]
[1764641138683,1.11472,86502.0,86501.0,0.14262331]
[1764641138893,1.42472,86502.0,86501.0,0.00317331]
[1764641144296,1.42472,86502.0,86501.0,0.07294331]
[1764641144497,1.42472,86502.0,86501.0,0.00317331]
[1764641148291,1.44890699,86502.0,86501.0,0.00317331]
[1764641149198,1.44890699,86502.0,86501.0,0.14262331]
[1764641151002,1.43734699,86502.0,86501.0,0.14262331]
[1764641152499,0.86198699,86502.0,86501.0,0.14262331]
[1764641152709,0.85198699,86502.0,86501.0,0.14262331]
[1764641153003,0.85734699,86502.0,86501.0,0.14262331]
[1764641153201,1.24734699,86502.0,86501.0,0.14262331]
[1764641153907,1.24734699,86502.0,86501.0,0.00317331]
[1764641157192,1.24734699,86502.0,86501.0,0.00117331]
[1764641157610,1.24734699,86502.0,86501.0,0.07094331]
[1764641158998,1.24734699,86502.0,86501.0,0.14062331]
[1764641159202,0.88198699,86502.0,86501.0,0.14062331]
[1764641159406,0.06418699,86502.0,86501.0,0.14062331]
[1764641159711,0.02971331,86518.0,86517.0,0.13945]
[1764641159895,0.96789331,86518.0,86517.0,0.13945]
[1764641160727,0.00017331,86518.0,86517.0,0.13945]
[1764641161012,0.3608,86542.0,86538.0,0.13945]
[1764641161202,0.40686,86542.0,86541.0,0.13945]
[1764641161403,0.94454,86542.0,86541.0,0.13945]
[1764641161801,0.91768,86542.0,86541.0,0.1509015]
[1764641162112,0.91768,86542.0,86541.0,0.13945]
[1764641162515,0.93804,86542.0,86541.0,0.06977]
[1764641162702,0.93804,86542.0,86541.0,0.13725]
[1764641163312,0.93804,86542.0,86541.0,0.06977]
[1764641164015,0.02036,86539.0,86538.0,0.3608]
[1764641164219,0.44036,86539.0,86538.0,0.3608]
[1764641164517,0.44036,86539.0,86538.0,0.42339]
[1764641164814,0.44036,86539.0,86538.0,0.13007]
[1764641165614,0.02036,86534.0,86533.0,0.06276331]
[1764641165804,0.98796,86534.0,86533.0,0.13024331]
[1764641166210,0.98796,86534.0,86533.0,0.06276331]
[1764641166403,1.38796,86534.0,86533.0,0.00017331]
[1764641167516,0.36,86534.0,86533.0,0.00017331]
[1764641167722,0.36,86534.0,86533.0,0.13024331]
[1764641167909,0.361,86534.0,86533.0,0.13024331]
[1764641168814,0.36,86534.0,86533.0,0.13024331]
[1764641169627,0.5376,86537.0,86536.0,0.13007]
[1764641169805,0.05,86537.0,86536.0,0.13007]
[1764641170012,0.53756,86540.0,86539.0,0.13007]
[1764641170216,0.97792,86540.0,86539.0,0.13007]
[1764641170411,0.9894761,86540.0,86538.0,0.3608]
[1764641170607,0.02036,86539.0,86538.0,0.13007]
[1764641170817,0.38036,86539.0,86538.0,0.13007]
[1764641171920,0.38036,86539.0,86535.0,0.03931]
[1764641171921,0.02036,86536.0,86535.0,0.03931]
[1764641172127,0.02036,86534.0,86533.0,0.00017331]
[1764641172326,0.37036,86534.0,86533.0,0.00017331]
[1764641173411,0.02036,86529.0,86528.0,0.17271]
[1764641173628,1.30868,86529.0,86528.0,0.17271]
[1764641174826,0.02036,86521.0,86520.0,0.17288331]
[1764641175023,0.91788,86521.0,86520.0,0.04281331]
[1764641175425,0.91788,86521.0,86520.0,0.10540331]
[1764641176230,0.91788,86521.0,86520.0,0.00017331]
[1764641176420,0.91788,86521.0,86520.0,0.13024331]
[1764641176618,0.91888,86521.0,86520.0,0.13024331]
[1764641176814,0.91888,86521.0,86520.0,0.00017331]
[1764641177014,1.35888,86521.0,86520.0,0.00017331]
[1764641178128,1.35788,86521.0,86520.0,0.00017331]
[1764641178325,1.35888,86521.0,86520.0,0.00017331]
[1764641178825,0.91888,86521.0,86520.0,0.06276331]
[1764641179131,0.91888,86521.0,86520.0,0.13024331]
[1764641180226,1.36788,86521.0,86520.0,0.00017331]
[1764641180431,1.3928183,86521.0,86520.0,0.00017331]
[1764641182525,1.3918183,86521.0,86520.0,0.00017331]
[1764641182727,1.3938183,86521.0,86520.0,0.00017331]
[1764641183318,1.3938183,86521.0,86520.0,0.06276331]
[1764641183526,1.36988,86521.0,86520.0,0.06276331]
[1764641183729,1.36988,86521.0,86520.0,0.00017331]
[1764641185735,1.36988,86521.0,86503.0,0.13007]
[1764641185736,0.02036,86504.0,86503.0,0.13007]
[1764641185927,0.02036,86501.0,86500.0,0.1019]
[1764641186228,0.57036,86501.0,86500.0,0.1019]
[1764641186433,0.02036,86498.0,86497.0,0.0117651]
[1764641186640,1.38792,86498.0,86497.0,0.0117651]
[1764641186831,0.02036,86495.0,86494.0,0.00011771]
[1764641187021,1.12116,86495.0,86494.0,0.00011771]
[1764641187533,0.77116,86495.0,86494.0,0.06270771]
[1764641188130,0.77116,86495.0,86494.0,0.06370771]
[1764641188131,1.04116,86495.0,86494.0,0.06370771]
[1764641190337,1.04116,86495.0,86494.0,0.00111771]
[1764641190728,1.04116,86495.0,86475.0,0.04141867]
[1764641190729,0.0115623,86494.0,86477.0,0.0115645]
[1764641190930,0.3608,86483.0,86482.0,0.1654539]
[1764641191128,0.9784,86483.0,86482.0,0.1654539]
[1764641191334,1.2684,86483.0,86482.0,0.1654539]
[1764641191842,1.26849686,86483.0,86482.0,0.1654539]
[1764641193937,1.26849686,86483.0,86482.0,0.1684539]
[1764641194646,1.26849686,86483.0,86482.0,0.15689]
[1764641196829,1.55849686,86483.0,86482.0,0.15689]
[1764641197424,1.55849686,86483.0,86482.0,0.003]
[1764641197640,0.0993,86457.0,86451.0,0.04141867]
[1764641197845,0.0993,86452.0,86451.0,0.07875]
[1764641198032,0.0993,86449.0,86448.0,0.0486]
[1764641198344,0.0993,86439.0,86432.0,0.0486]
[1764641198638,0.0993,86439.0,86416.0,0.0486]
[1764641198639,0.0993,86425.0,86416.0,0.0486]
[1764641198834,0.0993,86425.0,86420.0,0.15858]
[1764641198835,0.41045,86421.0,86420.0,0.15858]
[1764641199039,0.5208,86421.0,86420.0,0.15858]
[1764641199236,0.7408,86421.0,86420.0,0.15858]
[1764641199440,0.0993,86417.0,86416.0,0.0486]
[1764641199644,0.93770205,86417.0,86416.0,0.20718]
[1764641199941,0.98735205,86417.0,86416.0,0.20718]
[1764641200747,0.88805205,86417.0,86416.0,0.21118]
[1764641201537,0.88705205,86417.0,86416.0,0.21118]
[1764641202244,0.88705205,86417.0,86416.0,0.21218]
[1764641202441,9.205e-05,86417.0,86416.0,0.21218]
[1764641207437,0.09939205,86417.0,86416.0,0.005]
[1764641207637,0.46019205,86417.0,86416.0,0.005]
[1764641208745,0.0993,86401.0,86400.0,0.20718]
[1764641208951,0.09939555,86401.0,86400.0,0.20718]
[1764641209845,0.09839555,86401.0,86400.0,0.12735]
[1764641210037,0.09839555,86401.0,86400.0,0.13135]
[1764641211449,0.09839555,86401.0,86400.0,0.21218]
[1764641211832,9.555e-05,86401.0,86400.0,0.21218]
[1764641212038,0.46601555,86401.0,86400.0,0.21218]
[1764641212345,9.555e-05,86401.0,86400.0,0.21218]
[1764641214143,0.06032025,86401.0,86400.0,0.21218]
[1764641214342,0.06032025,86401.0,86400.0,0.005]
[1764641214343,0.10897025,86401.0,86400.0,0.005]
[1764641214545,0.50897025,86401.0,86400.0,0.005]
[1764641215046,0.50897025,86401.0,86400.0,0.13235]
[1764641215250,0.10897025,86401.0,86400.0,0.21218]
[1764641215447,0.10897025,86401.0,86400.0,0.005]
[1764641215647,0.54897025,86401.0,86400.0,0.005]
[1764641216048,0.16897025,86401.0,86400.0,0.005]
[1764641216742,9.555e-05,86401.0,86400.0,0.21218]
[1764641220447,0.01167025,86401.0,86400.0,0.21218]
[1764641220749,0.10897025,86401.0,86400.0,0.005]
[1764641221250,0.52897025,86401.0,86400.0,0.005]
[1764641221445,0.88977025,86401.0,86400.0,0.005]
[1764641221648,0.0115775,86380.0,86373.0,0.0486]
[1764641221853,0.4581,86375.0,86374.0,0.15858]
[1764641222853,0.4571,86375.0,86374.0,0.15858]
[1764641223346,0.4571,86375.0,86374.0,0.16258]
[1764641224751,0.8271,86375.0,86374.0,0.005]
[1764641225956,0.8571,86375.0,86374.0,0.005]
[1764641226538,0.05612,86373.0,86372.0,0.0001062]
[1764641226742,0.80692,86373.0,86372.0,0.0001062]
[1764641227742,0.80692,86373.0,86372.0,0.0011062]
[1764641228145,0.80692,86373.0,86372.0,0.1468062]
[1764641228146,0.3608,86373.0,86372.0,0.1468062]
[1764641228847,9.386e-05,86379.0,86373.0,0.0115785]
[1764641229055,9.386e-05,86379.0,86378.0,0.1572778]
[1764641229843,0.05612,86373.0,86372.0,0.1905362]
[1764641230050,0.61694735,86373.0,86372.0,0.0011062]
[1764641230350,0.0115801,86361.0,86350.0,0.0486]
[1764641230650,0.41192,86357.0,86356.0,0.07374]
[1764641230850,0.8986,86357.0,86356.0,0.1457]
[1764641231152,0.02606,86351.0,86350.0,0.12234]
[1764641231356,0.02606,86345.0,86344.0,0.07374]
[1764641231655,0.59092,86345.0,86344.0,0.07374]
[1764641231855,0.04812,86342.0,86341.0,1.5]
[1764641232252,0.04712,86339.0,86338.0,0.01147667]
[1764641232557,0.40792,86339.0,86338.0,0.01147667]
[1764641232759,0.3608,86339.0,86338.0,0.1457]
[1764641233248,0.04612,86337.0,86336.0,0.05]
[1764641233449,0.46312,86337.0,86336.0,0.05]
[1764641233650,0.24874935,86330.0,86317.0,0.04173]
[1764641233850,0.3608,86322.0,86321.0,0.07374]
[1764641234156,0.3608,86322.0,86321.0,0.1457]
[1764641234347,0.3598,86322.0,86321.0,0.1457]
[1764641234752,0.00013405,86329.0,86328.0,0.18743]
[1764641235050,0.07303405,86329.0,86328.0,0.18743]
[1764641235457,0.00013405,86329.0,86328.0,0.18743]
[1764641236242,0.00013405,86329.0,86328.0,0.18843]
[1764641236458,0.14703405,86329.0,86328.0,0.001]
[1764641236850,0.14703405,86329.0,86328.0,0.002]
[1764641237458,0.51703405,86329.0,86328.0,0.002]
[1764641237858,0.00013405,86329.0,86328.0,0.18943]
[1764641238363,0.00013405,86329.0,86328.0,0.18843]
[1764641238557,0.00613405,86329.0,86328.0,0.18843]
[1764641239058,0.3608,86354.0,86344.0,0.1457]
[1764641239260,0.3608,86346.0,86345.0,0.1457]
[1764641239558,0.3608,86353.0,86352.0,0.18743]
[1764641240060,0.3608,86363.0,86362.0,0.1457]
[1764641240250,0.36094565,86363.0,86362.0,0.1457]
[1764641240450,0.00014565,86363.0,86362.0,0.1457]
[1764641241664,0.00114565,86363.0,86362.0,0.1457]
[1764641242449,0.00614565,86363.0,86362.0,0.1467]
[1764641243451,0.00017372,86371.0,86362.0,0.1467]
[1764641243452,0.3608,86391.0,86390.0,0.1572762]
[1764641243653,0.3608,86401.0,86388.0,0.04173]
[1764641243654,0.3608,86401.0,86400.0,0.1990048]
[1764641243957,0.3608,86411.0,86404.0,0.0115743]
[1764641244159,0.3608,86411.0,86408.0,0.0115737]
[1764641244463,5.117e-05,86410.0,86407.0,0.0115738]
[1764641244665,5.117e-05,86410.0,86409.0,0.1457]
[1764641245159,0.0115736,86409.0,86401.0,0.00017362]
[1764641245358,5.117e-05,86410.0,86409.0,0.1457]
[1764641245562,0.00605117,86410.0,86409.0,0.1457]
[1764641246163,0.15295117,86410.0,86409.0,0.001]
[1764641246349,0.15295117,86410.0,86409.0,0.1467]
[1764641246350,0.00605117,86410.0,86409.0,0.1467]
[1764641246550,0.15295117,86410.0,86409.0,0.07474]
[1764641247064,0.15395117,86410.0,86409.0,0.07474]
[1764641247454,0.15395117,86410.0,86409.0,0.001]
[1764641247652,0.14695117,86410.0,86402.0,0.0115745]
[1764641247964,0.3291496,86412.0,86411.0,0.04173]
[1764641248161,0.3291496,86412.0,86411.0,0.18743]
[1764641248859,0.3291496,86412.0,86411.0,0.04173]
[1764641249366,0.3291496,86412.0,86401.0,0.00017362]
[1764641249548,0.24974935,86411.0,86401.0,0.00017362]
[1764641250367,0.3608,86403.0,86402.0,0.16047]
[1764641250863,0.07762,86402.0,86401.0,0.08690362]
[1764641251060,0.07762,86402.0,86401.0,0.00017362]
[1764641251360,0.07762,86402.0,86381.0,0.18099993]
[1764641251361,0.07762,86382.0,86381.0,0.18099993]
[1764641251552,0.43842,86382.0,86381.0,0.01151993]
[1764641251863,0.43842,86382.0,86372.0,0.41196]
[1764641252065,0.43842,86382.0,86373.0,0.0115785]
[1764641252766,0.53981362,86386.0,86381.0,0.16603]
[1764641252964,0.53981362,86386.0,86385.0,0.22021]
[1764641253155,0.00017362,86386.0,86385.0,0.22021]
[1764641253661,0.3608,86407.0,86385.0,0.22021]
[1764641253662,0.26112,86406.0,86401.0,0.17096]
[1764641254164,0.26112,86406.0,86405.0,0.08768]
[1764641254368,0.0115742,86405.0,86390.0,0.17096]
[1764641254563,0.3608,86395.0,86394.0,0.08768]
[1764641254761,0.39785,86395.0,86394.0,0.08768]
[1764641255355,0.39785,86395.0,86394.0,0.17096]
[1764641255555,0.3608,86395.0,86394.0,0.17096]
[1764641256155,0.002,86405.0,86394.0,0.1825355]
[1764641256369,0.002,86405.0,86386.0,0.00017362]
[1764641256370,0.002,86405.0,86404.0,0.17096]
[1764641256563,0.61582,86405.0,86404.0,0.08768]
[1764641256754,0.03705,86399.0,86398.0,0.13693]
[1764641256955,0.39785,86399.0,86398.0,0.13693]
[1764641257266,0.39785,86399.0,86398.0,0.22021]
[1764641257654,0.3608,86399.0,86398.0,0.22021]
[1764641258258,0.3638,86399.0,86398.0,0.22021]
[1764641258669,0.003,86399.0,86398.0,0.22021]
[1764641258874,0.004,86399.0,86398.0,0.22021]
[1764641259663,0.003,86399.0,86398.0,0.22021]
[1764641260262,0.14931531,86410.0,86398.0,0.04925]
[1764641260572,0.0115737,86409.0,86402.0,0.0115745]
[1764641261160,0.3608,86405.0,86404.0,0.17096]
[1764641262359,0.4349,86405.0,86398.0,0.04925]
[1764641262560,0.0741,86399.0,86398.0,0.04925]
[1764641262771,0.0741,86395.0,86394.0,0.3608]
[1764641263068,0.03705,86387.0,86372.0,0.41196]
[1764641263263,0.0741,86387.0,86386.0,0.08785362]
[1764641263476,0.0741,86387.0,86386.0,0.00017362]
[1764641263770,0.4349,86387.0,86386.0,0.00017362]
[1764641264471,0.8149,86387.0,86386.0,0.00017362]
[1764641264671,1.2049,86387.0,86386.0,0.00017362]
[1764641266168,1.74438,86387.0,86386.0,0.00017362]
[1764641268062,1.41438,86387.0,86386.0,0.00017362]
[1764641268263,1.66438,86387.0,86386.0,0.00017362]
[1764641268472,1.42438,86387.0,86386.0,0.00017362]
[1764641269163,1.29028,86387.0,86386.0,0.17113362]
[1764641269366,1.29024,86387.0,86386.0,0.17113362]
[1764641269759,0.98024,86387.0,86386.0,0.18271032]
[1764641269974,0.98024,86387.0,86386.0,0.17113362]
[1764641270172,0.36097362,86395.0,86394.0,0.17096]
[1764641270474,0.90041362,86395.0,86394.0,0.1825356]
[1764641270671,1.33451362,86395.0,86394.0,0.17096]
[1764641270872,1.33451362,86395.0,86394.0,0.08768]
[1764641271074,0.0741,86389.0,86388.0,0.13693]
[1764641271264,0.39705,86389.0,86388.0,0.22021]
[1764641271467,0.97651362,86395.0,86394.0,0.17096]
[1764641271671,1.36651362,86395.0,86394.0,0.17096]
[1764641272771,0.36297362,86395.0,86394.0,0.22021]
[1764641272977,1.26041362,86395.0,86394.0,0.22021]
[1764641274180,1.26241362,86395.0,86394.0,0.22021]
[1764641274370,0.90241362,86395.0,86394.0,0.22021]
[1764641275575,0.97651362,86395.0,86394.0,0.22021]
[1764641278777,0.0741,86389.0,86388.0,0.13693]
[1764641278984,0.36297362,86395.0,86394.0,0.2317856]
[1764641279182,0.90225362,86395.0,86394.0,0.2317856]
[1764641279974,0.00217362,86395.0,86394.0,0.5925856]
[1764641280176,0.00017362,86395.0,86394.0,0.5925856]
[1764641280675,0.74936,86405.0,86404.0,0.1825343]
[1764641282179,0.75036,86405.0,86404.0,0.1825343]
[1764641283487,0.90036,86405.0,86404.0,0.1825343]
[1764641284076,0.001,86405.0,86404.0,0.1825343]
[1764641285282,0.36097362,86413.0,86412.0,0.1636732]
[1764641285787,0.00017362,86413.0,86412.0,0.1636732]
[1764641286282,0.3608,86432.0,86431.0,0.1521]
[1764641286283,0.92354,86432.0,86431.0,0.1521]
[1764641286489,1.19354,86432.0,86431.0,0.1521]
[1764641286781,0.02334,86421.0,86420.0,0.12323]
[1764641286986,0.80414,86421.0,86420.0,0.12323]
[1764641287185,0.70414,86421.0,86420.0,0.12323]
[1764641287686,0.3608,86425.0,86424.0,0.1521]
[1764641288271,0.7508,86425.0,86424.0,0.1521]
[1764641288475,0.76247,86425.0,86424.0,0.1521]
[1764641288786,0.77414,86425.0,86424.0,0.1521]
[1764641289386,0.3608,86425.0,86424.0,0.1521]
[1764641289690,0.3628,86425.0,86424.0,0.1521]
[1764641290189,0.002,86425.0,86424.0,0.1521]
[1764641290882,0.00017362,86429.0,86424.0,0.1521]
[1764641290883,0.00017362,86429.0,86428.0,0.1636711]
[1764641291986,0.40351362,86429.0,86428.0,0.1521]
[1764641292183,0.41508452,86429.0,86428.0,0.07824]
[1764641292385,0.40351362,86429.0,86428.0,0.1521]
[1764641292886,0.02334,86421.0,86420.0,0.19709]
[1764641293093,0.01167,86413.0,86412.0,0.15227362]
[1764641293286,0.3608,86426.0,86412.0,0.15227362]
[1764641293287,0.37247,86419.0,86418.0,0.1521]
[1764641293486,0.53937362,86429.0,86412.0,0.00017362]
[1764641293487,0.00017362,86429.0,86428.0,0.1521]
[1764641293788,0.02334,86421.0,86420.0,0.12323]
[1764641293981,0.76414,86421.0,86420.0,0.19709]
[1764641294491,0.76414,86421.0,86420.0,0.04499]
[1764641295680,0.76514,86421.0,86420.0,0.04499]
[1764641295879,0.56514,86421.0,86420.0,0.12323]
[1764641296083,0.76514,86421.0,86420.0,0.12323]
[1764641296278,0.76714,86421.0,86420.0,0.12323]
[1764641296885,0.76614,86421.0,86420.0,0.12323]
[1764641297393,0.76614,86421.0,86420.0,0.19709]